lending/lending_fUSD_20241120
["ID","MTS","AMOUNT","RATE_DAILY","PERIOD"]
[342808516,1732143165388,-552.66,0.0005863,120]
[342808517,1732143165397,-528.53,0.0005863,120]
[342808518,1732143165406,-661.12,0.0005863,120]
[342808519,1732143165416,-4504.33,0.0005863,120]
[342808520,1732143165425,-500.0,0.0005863,120]
[342808521,1732143165434,-1414.7,0.0005863,120]
[342808522,1732143165443,-500.0,0.0005863,120]
[342808523,1732143165453,-1839.1,0.0005863,20]
[342808524,1732143165464,-600.15,0.0005863,120]
[342808525,1732143165473,-639.71,0.0005863,120]
[342808526,1732143165483,-500.0,0.0005863,120]
[342808527,1732143165492,-1685.02,0.0005863,120]
[342808528,1732143165502,-500.0,0.0005863,120]
[342808529,1732143165629,-500.0,0.0005863,120]
[342808530,1732143165642,-643.92,0.0005863,120]
[342808531,1732143165652,-500.0,0.0005863,120]
[342808532,1732143165663,-503.41,0.0005863,120]
[342808533,1732143165673,-1838.85,0.0005863,120]
[342808534,1732143165683,-777.36,0.0005863,120]
[342808535,1732143165694,-1088.52,0.0005863,120]
[342808536,1732143165703,-3963.88,0.0005863,120]
[342808537,1732143165714,-500.0,0.0005863,120]
[342808538,1732143165724,-508.93,0.0005863,120]
[342808539,1732143165733,-500.0,0.0005863,120]
[342808540,1732143165743,-500.0,0.0005863,120]
[342808541,1732143165753,-522.18,0.0005863,120]
[342808542,1732143165763,-674.72,0.0005863,120]
[342808543,1732143165773,-1573.1,0.0005863,120]
[342808544,1732143165782,-500.0,0.0005863,120]
[342808545,1732143165791,-1344.45,0.0005863,120]
[342808546,1732143165801,-695.34,0.0005863,120]
[342808547,1732143165811,-993.23,0.0005863,120]
[342808548,1732143165820,-5030.76,0.0005863,120]
[342808549,1732143165833,-530.39,0.0005863,120]
[342808550,1732143165842,-1007.71,0.0005863,120]
[342808551,1732143165851,-845.57,0.0005863,120]
[342808552,1732143165860,-1508.05,0.0005863,120]
[342808553,1732143165869,-1000.0,0.0005863,30]
[342808554,1732143165879,-500.0,0.0005863,120]
[342808555,1732143165888,-1949.27,0.0005863,120]
[342808556,1732143165898,-635.4,0.0005863,120]
[342808557,1732143165909,-3671.8,0.0005863,120]
[342808558,1732143165923,-873.15,0.0005863,120]
[342808559,1732143165933,-1275.78,0.0005863,120]
[342808560,1732143165944,-500.0,0.0005863,120]
[342808561,1732143165955,-1300.6,0.0005863,120]
[342808562,1732143165967,-500.0,0.0005863,120]
[342808563,1732143165977,-1078.43,0.0005863,120]
[342808564,1732143165988,-729.83,0.0005863,120]
[342808565,1732143165999,-1015.57,0.0005863,120]
[342808566,1732143166010,-562.04,0.0005863,120]
[342808567,1732143166019,-2222.66,0.0005863,120]
[342808568,1732143166029,-2596.1,0.0005863,120]
[342808569,1732143166040,-1080.64,0.0005863,120]
[342808570,1732143166050,-852.14,0.0005863,120]
[342808571,1732143166060,-569.32,0.0005863,120]
[342808572,1732143166070,-509.24,0.0005863,120]
[342808573,1732143166080,-500.0,0.0005863,120]
[342808574,1732143166090,-700.0,0.0005863,120]
[342808575,1732143166100,-928.5,0.0005863,120]
[342808576,1732143166110,-1806.6,0.0005863,120]
[342808577,1732143166120,-500.0,0.0005863,120]
[342808578,1732143166130,-1129.79,0.0005863,120]
[342808579,1732143166140,-500.0,0.0005863,120]
[342808580,1732143166151,-2425.19,0.0005863,120]
[342808581,1732143166160,-625.0,0.0005863,120]
[342808582,1732143166170,-500.0,0.0005863,120]
[342808583,1732143166181,-1018.93,0.0005863,120]
[342808584,1732143166191,-2073.72,0.0005863,120]
[342808585,1732143166201,-1011.93,0.0005863,120]
[342808586,1732143166211,-1257.41,0.0005863,120]
[342808587,1732143166222,-1328.54,0.0005863,120]
[342808588,1732143166232,-893.2,0.0005863,120]
[342808589,1732143166242,-878.56,0.0005863,120]
[342808590,1732143166252,-1954.12,0.0005863,120]
[342808591,1732143166262,-1107.33,0.0005863,120]
[342808592,1732143166272,-5394.68,0.0005863,120]
[342808593,1732143166282,-500.0,0.0005863,120]
[342808594,1732143166291,-463.05178424,0.0005863,120]
[342808595,1732143166301,-543.1,0.0005863,120]
[342808596,1732143166311,-965.73,0.0005863,120]
[342808597,1732143166320,-500.0,0.0005863,120]
[342808598,1732143166331,-500.0,0.0005863,120]
[342808599,1732143166341,-1317.76,0.0005863,120]
[342808600,1732143166351,-594.46,0.0005863,120]
[342808601,1732143166361,-1617.12,0.0005863,120]
[342808602,1732143166371,-657.08,0.0005863,120]
[342808603,1732143166381,-4865.56,0.0005863,120]
[342808604,1732143166392,-628.07,0.0005863,120]
[342808605,1732143166402,-567.172995,0.0005863,120]
[342808606,1732143166411,-567.172995,0.0005863,120]
[342808607,1732143166421,-567.172995,0.0005863,120]
[342808608,1732143166430,-500.0,0.0005863,120]
[342808609,1732143166440,-567.172995,0.0005863,120]
[342808610,1732143166450,-567.172995,0.0005863,120]
[342808611,1732143166460,-500.0,0.0005863,120]
[342808612,1732143166475,-567.172995,0.0005863,120]
[342808613,1732143166485,-151.0,0.0005863,120]
[342808614,1732143166494,-567.172995,0.0005863,120]
[342808615,1732143166503,-567.172995,0.0005863,120]
[342808616,1732143166514,-567.172995,0.0005863,120]
[342808617,1732143166523,-567.172994,0.0005863,120]
[342808618,1732143166532,-1510.86,0.0005863,120]
[342808619,1732143166542,-2529.98,0.0005863,120]
[342808620,1732143166551,-635.24,0.0005863,120]
[342808621,1732143166560,-750.97,0.0005863,120]
[342808622,1732143166570,-1761.11,0.0005863,120]
[342808623,1732143166580,-624.76,0.0005863,120]
[342808624,1732143166590,-46265.17,0.0005863,120]
[342808625,1732143166601,-500.0,0.0005863,120]
[342808626,1732143166612,-880.93,0.0005863,120]
[342808627,1732143166621,-500.0,0.0005863,120]
[342808628,1732143166631,-644.52,0.0005863,120]
[342808629,1732143166640,-4390.12,0.0005863,120]
[342808630,1732143166649,-151.0,0.0005863,120]
[342808631,1732143166658,-500.0,0.0005863,120]
[342808632,1732143166668,-151.0,0.0005863,120]
[342808633,1732143166677,-151.0,0.0005863,120]
[342808634,1732143166687,-151.0,0.0005863,120]
[342808635,1732143166696,-3641.91,0.0005863,120]
[342808636,1732143166708,-151.0,0.0005863,120]
[342808637,1732143166718,-500.0,0.0005863,120]
[342808638,1732143166728,-2046.77,0.0005863,120]
[342808639,1732143166738,-162.697314,0.0005863,120]
[342808640,1732143166747,-519.31,0.0005863,120]
[342808641,1732143166757,-1582.94,0.0005863,120]
[342808642,1732143166766,-1566.08,0.0005863,120]
[342808643,1732143166776,-1540.18,0.0005863,120]
[342808644,1732143166786,-151.0,0.0005863,120]
[342808645,1732143166795,-151.0,0.0005863,120]
[342808646,1732143166805,-151.0,0.0005863,120]
[342808647,1732143166815,-500.0,0.0005863,120]
[342808648,1732143166825,-32182.96,0.0005863,120]
[342808649,1732143166835,-2395.44,0.0005863,120]
[342808650,1732143166844,-418.55925606,0.0005863,120]
[342808651,1732143166854,-500.0,0.0005863,120]
[342808652,1732143166865,-774.88,0.0005863,120]
[342808653,1732143166876,-500.0,0.0005863,120]
[342808654,1732143166887,-500.0,0.0005863,120]
[342808655,1732143166896,-3018.97,0.0005863,120]
[342808656,1732143166908,-1221.56,0.0005863,120]
[342808657,1732143166922,-949.33,0.0005863,120]
[342808658,1732143166932,-500.0,0.0005863,120]
[342808659,1732143166944,-502.3729637,0.0005863,120]
[342808660,1732143166955,-512.47,0.0005863,120]
[342808661,1732143166966,-975.73,0.0005863,120]
[342808662,1732143166975,-1680.87,0.0005863,120]
[342808663,1732143166985,-2068.97,0.0005863,120]
[342808664,1732143166996,-509.92,0.0005863,120]
[342808665,1732143167006,-500.0,0.0005863,120]
[342808666,1732143167016,-2386.08,0.0005863,120]
[342808667,1732143167025,-850.0,0.0005863,120]
[342808668,1732143167035,-2587.78,0.0005863,120]
[342808669,1732143167045,-1481.97,0.0005863,120]
[342808670,1732143167054,-500.0,0.0005863,120]
[342808671,1732143167064,-1478.74,0.0005863,120]
[342808672,1732143167073,-200.20081971,0.0005863,120]
[342808673,1732143167083,-500.0,0.0005863,120]
[342808674,1732143167092,-580.13,0.0005863,120]
[342808675,1732143167102,-500.0,0.0005863,120]
[342808676,1732143167112,-1753.89,0.0005863,120]
[342808677,1732143167122,-816.51,0.0005863,120]
[342808678,1732143167132,-500.0,0.0005863,120]
[342808679,1732143167141,-10880.09,0.0005863,120]
[342808680,1732143167151,-2245.37,0.0005863,120]
[342808681,1732143167160,-500.0,0.0005863,120]
[342808682,1732143167170,-3622.31,0.0005863,120]
[342808683,1732143167180,-502.6,0.0005863,120]
[342808684,1732143167190,-500.0,0.0005863,120]
[342808685,1732143167199,-1317.84,0.0005863,120]
[342808686,1732143167209,-1518.89,0.0005863,90]
[342808687,1732143167219,-1643.31,0.0005863,120]
[342808688,1732143167229,-1298.63,0.0005863,120]
[342808689,1732143167238,-943.47,0.0005863,120]
[342808690,1732143167248,-500.0,0.0005863,120]
[342808691,1732143167257,-1649.32,0.0005863,120]
[342808692,1732143167268,-550.87,0.0005863,120]
[342808693,1732143167278,-5640.48,0.0005863,120]
[342808694,1732143167287,-388.325836,0.0005863,120]
[342808695,1732143167296,-2158.9,0.0005863,120]
[342808696,1732143167306,-388.325836,0.0005863,120]
[342808697,1732143167316,-388.325835,0.0005863,120]
[342808698,1732143167326,-1165.26,0.0005863,120]
[342808699,1732143167335,-1244.51,0.0005863,120]
[342808700,1732143167344,-500.0,0.0005863,120]
[342808701,1732143167354,-500.0,0.0005863,120]
[342808702,1732143167364,-9870.91,0.0005863,120]
[342808703,1732143167374,-1110.14,0.0005863,120]
[342808704,1732143167385,-986.78,0.0005863,120]
[342808705,1732143167395,-567.02,0.0005863,120]
[342808706,1732143167406,-509.81856792,0.0005863,120]
[342808707,1732143167416,-651.9,0.0005863,120]
[342808708,1732143167427,-500.0,0.0005863,120]
[342808709,1732143167436,-3368.96,0.0005863,120]
[342808710,1732143167445,-6243.58,0.0005863,120]
[342808711,1732143167454,-1221.81,0.0005863,120]
[342808712,1732143167465,-1021.75,0.0005863,120]
[342808713,1732143167474,-577.16824578,0.0005863,120]
[342808714,1732143167483,-1378.96,0.0005863,120]
[342808715,1732143167493,-312.76960809,0.0005863,120]
[342808716,1732143167503,-500.0,0.0005863,120]
[342808717,1732143167513,-1402.48,0.0005863,120]
[342808718,1732143167523,-2324.89,0.0005863,120]
[342808719,1732143167534,-1098.99,0.0005863,7]
[342808720,1732143167545,-500.0,0.0005863,120]
[342808721,1732143167555,-3357.52,0.0005863,120]
[342808722,1732143167565,-631.52,0.0005863,120]
[342808723,1732143167575,-1503.83,0.0005863,120]
[342808724,1732143167587,-500.0,0.0005863,120]
[342808725,1732143167598,-610.46,0.0005863,120]
[342808726,1732143167608,-500.0,0.0005863,120]
[342808727,1732143167617,-676.3,0.0005863,120]
[342808728,1732143167627,-4485.14,0.0005863,120]
[342808729,1732143167637,-1449.22,0.0005863,120]
[342808730,1732143167646,-802.14,0.0005863,120]
[342808731,1732143167655,-1005.77,0.0005863,120]
[342808732,1732143167665,-62267.29,0.0005863,5]
[342808733,1732143167675,-500.0,0.0005863,120]
[342808734,1732143167684,-500.0,0.0005863,120]
[342808735,1732143167694,-1000.0,0.0005863,120]
[342808736,1732143167703,-1200.11,0.0005863,120]
[342808737,1732143167712,-4633.73,0.0005863,120]
[342808738,1732143167721,-500.0,0.0005863,120]
[342808739,1732143167730,-1462.06,0.0005863,120]
[342808740,1732143167739,-1071.61,0.0005863,120]
[342808741,1732143167748,-1246.53,0.0005863,120]
[342808742,1732143167757,-401.89873799,0.0005863,120]
[342808743,1732143167767,-665.76,0.0005863,120]
[342808744,1732143167776,-1619.4,0.0005863,120]
[342808745,1732143167785,-4155.63,0.0005863,120]
[342808746,1732143167794,-534.16,0.0005863,120]
[342808747,1732143167804,-500.0,0.0005863,120]
[342808748,1732143167814,-417.48630965,0.0005863,120]
[342808749,1732143167824,-716.03,0.0005863,120]
[342808750,1732143168153,-710.7,0.0005863,120]
[342808751,1732143168168,-1328.15,0.0005863,120]
[342808752,1732143168177,-3842.23,0.0005863,120]
[342808753,1732143168187,-1770.4,0.0005863,120]
[342808754,1732143168198,-1828.16,0.0005863,120]
[342808755,1732143168208,-734.2,0.0005863,120]
[342808756,1732143168218,-500.0,0.0005863,120]
[342808757,1732143168228,-4113.57,0.0005863,120]
[342808758,1732143168237,-3361.09,0.0005863,120]
[342808759,1732143168246,-2336.41,0.0005863,120]
[342808760,1732143168256,-914.26,0.0005863,120]
[342808761,1732143168266,-2227.59,0.0005863,120]
[342808762,1732143168275,-1225.66,0.0005863,120]
[342808763,1732143168285,-1199.34,0.0005863,120]
[342808764,1732143168294,-500.0,0.0005863,120]
[342808765,1732143168304,-818.4,0.0005863,120]
[342808766,1732143168314,-945.67,0.0005863,120]
[342808767,1732143168324,-656.2,0.0005863,120]
[342808768,1732143168333,-4656.57,0.0005863,120]
[342808769,1732143168343,-1601.15,0.0005863,120]
[342808770,1732143168352,-2590.51,0.0005863,120]
[342808771,1732143168362,-588.78838773,0.0005863,120]
[342808772,1732143168371,-329.75777746,0.0005863,120]
[342808773,1732143168380,-617.4,0.0005863,120]
[342808774,1732143168390,-1087.48,0.0005863,120]
[342808775,1732143168399,-228.8712666,0.0005863,120]
[342808776,1732143168408,-1021.22,0.0005863,120]
[342808777,1732143168418,-500.0,0.0005863,120]
[342808778,1732143168427,-530.21,0.0005863,120]
[342808779,1732143168437,-4078.12,0.0005863,120]
[342808780,1732143168446,-609.85,0.0005863,120]
[342808781,1732143168456,-1271.08,0.0005863,120]
[342808782,1732143168467,-630.13,0.0005863,120]
[342808783,1732143168477,-1053.42,0.0005863,120]
[342808784,1732143168486,-868.75,0.0005863,120]
[342808785,1732143168496,-10737.37,0.0005863,21]
[342808786,1732143168505,-3054.48,0.0005863,120]
[342808787,1732143168515,-772.0,0.0005863,120]
[342808788,1732143168525,-790.82,0.0005863,120]
[342808789,1732143168535,-1615.7,0.0005863,120]
[342808790,1732143168544,-500.0,0.0005863,120]
[342808791,1732143168554,-2780.77,0.0005863,120]
[342808792,1732143168563,-3170.06,0.0005863,120]
[342808793,1732143168572,-530.51,0.0005863,120]
[342808794,1732143168581,-814.28,0.0005863,120]
[342808795,1732143168591,-500.0,0.0005863,120]
[342808796,1732143168601,-500.0,0.0005863,120]
[342808797,1732143168610,-500.0,0.0005863,120]
[342808798,1732143168619,-500.0,0.0005863,120]
[342808799,1732143168628,-1053.94,0.0005863,120]
[342808800,1732143168637,-832.21,0.0005863,120]
[342808801,1732143168647,-559.12,0.0005863,120]
[342808802,1732143168656,-500.0,0.0005863,120]
[342808803,1732143168666,-962.23,0.0005863,120]
[342808804,1732143168675,-4610.65,0.0005863,120]
[342808805,1732143168685,-481.22641927,0.0005863,120]
[342808806,1732143168695,-630.95,0.0005863,120]
[342808807,1732143168705,-7093.52,0.0005863,120]
[342808808,1732143168714,-1497.99,0.0005863,120]
[342808809,1732143168724,-3030.53,0.0005863,120]
[342808810,1732143168733,-2002.76,0.0005863,120]
[342808811,1732143168743,-4996.62,0.0005863,120]
[342808812,1732143168752,-1038.47,0.0005863,120]
[342808813,1732143168761,-3755.03,0.0005863,120]
[342808814,1732143168770,-500.0,0.0005863,120]
[342808815,1732143168780,-500.33,0.0005863,120]
[342808816,1732143168789,-619.43,0.0005863,120]
[342808817,1732143168798,-1395.84,0.0005863,120]
[342808818,1732143168808,-6717.87,0.0005863,120]
[342808819,1732143168818,-4210.05,0.0005863,120]
[342808820,1732143168827,-4619.32,0.0005863,120]
[342808821,1732143168837,-2125.56,0.0005863,120]
[342808822,1732143168846,-1522.48,0.0005863,120]
[342808823,1732143168856,-500.0,0.0005863,120]
[342808824,1732143168867,-500.0,0.0005863,120]
[342808825,1732143168876,-2913.49,0.0005863,120]
[342808826,1732143168886,-500.0,0.0005863,120]
[342808827,1732143168895,-6408.58,0.0005863,60]
[342808828,1732143168904,-500.0,0.0005863,120]
[342808829,1732143168917,-8536.13,0.0005863,120]
[342808830,1732143168926,-931.52,0.0005863,120]
[342808831,1732143168936,-5185.83,0.0005863,120]
[342808832,1732143168945,-873.24,0.0005863,120]
[342808833,1732143168955,-500.0,0.0005863,120]
[342808834,1732143168964,-1838.8,0.0005863,120]
[342808835,1732143168973,-500.0,0.0005863,120]
[342808836,1732143168983,-1525.45,0.0005863,120]
[342808837,1732143168994,-1373.0,0.0005863,120]
[342808838,1732143169003,-1659.86,0.0005863,120]
[342808839,1732143169013,-395.72411364,0.0005863,120]
[342808840,1732143169023,-5907.77,0.0005863,120]
[342808841,1732143169033,-647.02,0.0005863,120]
[342808842,1732143169042,-1210.69,0.0005863,120]
[342808843,1732143169052,-500.0,0.0005863,120]
[342808844,1732143169061,-526.64,0.0005863,120]
[342808845,1732143169071,-12504.89,0.0005863,120]
[342808846,1732143169081,-2076.98,0.0005863,120]
[342808847,1732143169091,-1181.36,0.0005863,120]
[342808848,1732143169101,-677.21,0.0005863,120]
[342808849,1732143169111,-2434.04,0.0005863,120]
[342808850,1732143169121,-1109.03,0.0005863,120]
[342808851,1732143169131,-1099.32,0.0005863,120]
[342808852,1732143169140,-651.95,0.0005863,120]
[342808853,1732143169150,-4681.73,0.0005863,120]
[342808854,1732143169159,-1502.22,0.0005863,120]
[342808855,1732143169169,-757.95,0.0005863,120]
[342808856,1732143169179,-986.66,0.0005863,120]
[342808857,1732143169189,-880.48,0.0005863,120]
[342808858,1732143169199,-1166.87,0.0005863,120]
[342808859,1732143169208,-1450.31,0.0005863,120]
[342808860,1732143169219,-2144.4,0.0005863,120]
[342808861,1732143169228,-548.14,0.0005863,120]
[342808862,1732143169237,-1032.14,0.0005863,120]
[342808863,1732143169247,-14474.38,0.0005863,120]
[342808864,1732143169256,-16729.96,0.0005863,120]
[342808865,1732143169266,-500.0,0.0005863,120]
[342808866,1732143169276,-500.0,0.0005863,120]
[342808867,1732143169286,-533.88,0.0005863,120]
[342808868,1732143169296,-3517.73,0.0005863,120]
[342808869,1732143169305,-2375.8,0.0005863,120]
[342808870,1732143169315,-726.78,0.0005863,120]
[342808871,1732143169325,-500.0,0.0005863,120]
[342808872,1732143169335,-2949.54,0.0005863,120]
[342808873,1732143169344,-680.36,0.0005863,120]
[342808874,1732143169354,-629.45,0.0005863,120]
[342808875,1732143169363,-500.0,0.0005863,120]
[342808876,1732143169373,-1835.32,0.0005863,120]
[342808877,1732143169382,-567.38,0.0005863,120]
[342808878,1732143169392,-1270.02,0.0005863,120]
[342808879,1732143169401,-1077.92,0.0005863,120]
[342808880,1732143169411,-1080.78,0.0005863,120]
[342808881,1732143169421,-500.0,0.0005863,120]
[342808882,1732143169431,-500.0,0.0005863,120]
[342808883,1732143169441,-730.91,0.0005863,120]
[342808884,1732143169450,-794.46,0.0005863,120]
[342808885,1732143169460,-836.47,0.0005863,120]
[342808886,1732143169471,-877.06,0.0005863,120]
[342808887,1732143169481,-1006.93,0.0005863,120]
[342808888,1732143169491,-873.31,0.0005863,120]
[342808889,1732143169501,-500.0,0.0005863,120]
[342808890,1732143169511,-897.49,0.0005863,120]
[342808891,1732143169520,-5067.66,0.0005863,120]
[342808892,1732143169530,-1213.36,0.0005863,120]
[342808893,1732143169540,-615.04,0.0005863,120]
[342808894,1732143169550,-537.82,0.0005863,120]
[342808895,1732143169559,-500.0,0.0005863,120]
[342808896,1732143169569,-500.0,0.0005863,120]
[342808897,1732143169579,-1001.49,0.0005863,120]
[342808898,1732143169589,-911.56,0.0005863,120]
[342808899,1732143169599,-1621.15,0.0005863,120]
[342808900,1732143169608,-1004.9,0.0005863,120]
[342808901,1732143169618,-1363.03,0.0005863,120]
[342808902,1732143169628,-670.6,0.0005863,120]
[342808903,1732143169638,-4519.72,0.0005863,120]
[342808904,1732143169648,-681.14,0.0005863,120]
[342808905,1732143169658,-597.02,0.0005863,120]
[342808906,1732143169668,-1529.3,0.0005863,120]
[342808907,1732143169678,-5382.48,0.0005863,120]
[342808908,1732143169689,-640.41,0.0005863,120]
[342808909,1732143169699,-2209.36,0.0005863,120]
[342808910,1732143169710,-1045.28,0.0005863,120]
[342808911,1732143169725,-3126.28037115,0.0005864,120]
[342808912,1732143169735,-100000.0,0.000587,120]
[342808913,1732143169744,-151.0,0.000587,120]
[342808914,1732143169754,-151.0,0.000587,120]
[342808915,1732143169764,-151.0,0.000587,120]
[342808916,1732143169773,-151.0,0.000587,120]
[342808917,1732143169783,-151.0,0.000587,120]
[342808918,1732143169793,-1500.0,0.00058783,30]
[342808919,1732143169803,-16586.0,0.000588,120]
[342808920,1732143169812,-800.77513023,0.00058881,30]
[342808921,1732143169822,-1500.0,0.0005889,30]
[342808922,1732143169831,-500.0,0.00058904,120]
[342808923,1732143169840,-500.0,0.00058904,120]
[342808924,1732143169849,-949.28,0.00058904,120]
[342808925,1732143169859,-588.18,0.00058904,120]
[342808926,1732143169869,-216.87,0.00058904,7]
[342808927,1732143169881,-1647.84,0.00058904,120]
[342808928,1732143169892,-500.0,0.00058904,120]
[342808929,1732143169901,-672.22,0.00058904,120]
[342808930,1732143169914,-901.77,0.00058904,120]
[342808931,1732143169925,-749.97,0.00058904,120]
[342808932,1732143169934,-500.0,0.00058904,120]
[342808933,1732143169947,-1584.28,0.00058904,120]
[342808934,1732143169958,-698.15,0.00058904,120]
[342808935,1732143169972,-500.0,0.00058904,120]
[342808936,1732143169981,-500.0,0.00058904,120]
[342808937,1732143169992,-550.21,0.00058904,120]
[342808938,1732143170001,-838.1,0.00058904,120]
[342808939,1732143170011,-500.0,0.00058904,120]
[342808940,1732143170021,-678.26,0.00058904,120]
[342808941,1732143170030,-528.71,0.00058904,120]
[342808942,1732143170044,-577.89,0.00058904,120]
[342808943,1732143170054,-1058.89,0.00058904,120]
[342808944,1732143170063,-500.0,0.00058904,120]
[342808945,1732143170072,-516.05,0.00058904,120]
[342808946,1732143170082,-500.0,0.00058904,120]
[342808947,1732143170091,-1582.8,0.00058904,120]
[342808948,1732143170100,-512.91,0.00058904,120]
[342808949,1732143170110,-910.7,0.00058904,120]
[342808950,1732143170119,-500.0,0.00058904,120]
[342808951,1732143170128,-686.07,0.00058904,120]
[342808952,1732143170137,-718.84,0.00058904,120]
[342808953,1732143170147,-500.0,0.00058904,120]
[342808954,1732143170156,-566.64,0.00058904,120]
[342808955,1732143170166,-581.13,0.00058904,120]
[342808956,1732143170175,-558.19,0.00058904,120]
[342808957,1732143170185,-1275.31,0.00058904,120]
[342808958,1732143170195,-572.91748912,0.00058904,120]
[342808959,1732143170204,-646.55,0.00058904,120]
[342808960,1732143170214,-500.0,0.00058904,120]
[342808961,1732143170226,-889.52,0.00058904,120]
[342808962,1732143170236,-1844.67,0.00058904,120]
[342808963,1732143170245,-1345.16,0.00058904,120]
[342808964,1732143170255,-1354.36,0.00058904,120]
[342808965,1732143170264,-1126.54,0.00058904,120]
[342808966,1732143170274,-810.54,0.00058904,120]
[342808967,1732143170283,-1630.49,0.00058904,120]
[342808968,1732143170292,-1539.37,0.00058904,120]
[342808969,1732143170301,-1061.11,0.00058904,120]
[342808970,1732143170311,-616.53,0.00058904,120]
[342808971,1732143170320,-584.94,0.00058904,120]
[342808972,1732143170329,-1163.7,0.00058904,120]
[342808973,1732143170338,-1697.48,0.00058904,120]
[342808974,1732143170348,-768.83,0.00058904,120]
[342808975,1732143170357,-1494.04,0.00058904,120]
[342808976,1732143170366,-583.76,0.00058904,120]
[342808977,1732143170375,-500.0,0.00058904,120]
[342808978,1732143170384,-1417.12,0.00058904,120]
[342808979,1732143170394,-514.86,0.00058904,120]
[342808980,1732143170403,-580.28,0.00058904,120]
[342808981,1732143170412,-625.85,0.00058904,120]
[342808982,1732143170422,-500.0,0.00058904,120]
[342808983,1732143170431,-1642.42,0.00058904,7]
[342808984,1732143170440,-835.63,0.00058904,120]
[342808985,1732143170449,-1168.69,0.00058904,120]
[342808986,1732143170458,-500.0,0.00058904,120]
[342808987,1732143170470,-785.67,0.00058904,120]
[342808988,1732143170479,-526.48,0.00058904,120]
[342808989,1732143170488,-1791.8,0.00058904,120]
[342808990,1732143170497,-500.0,0.00058904,120]
[342808991,1732143170506,-511.63120892,0.00058904,120]
[342808992,1732143170516,-283.88883843,0.00058904,120]
[342808993,1732143170682,-764.29,0.00058904,120]
[342808994,1732143170692,-937.69,0.00058904,120]
[342808995,1732143170702,-830.14,0.00058904,120]
[342808996,1732143170711,-500.0,0.00058904,58]
[342808997,1732143170722,-1926.82,0.00058904,120]
[342808998,1732143170732,-513.97,0.00058904,120]
[342808999,1732143170741,-500.0,0.00058904,120]
[342809000,1732143170750,-1258.94,0.00058904,120]
[342809001,1732143170759,-615.91,0.00058904,120]
[342809002,1732143170768,-739.53,0.00058904,120]
[342809003,1732143170777,-2364.09,0.00058904,120]
[342809004,1732143170786,-197.75185856,0.00058904,120]
[342809005,1732143170796,-1516.8,0.00058904,120]
[342809006,1732143170806,-644.03,0.00058904,120]
[342809007,1732143170815,-1222.69,0.00058904,120]
[342809008,1732143170824,-2792.61,0.00058904,120]
[342809009,1732143170833,-689.07,0.00058904,120]
[342809010,1732143170844,-598.66,0.00058904,120]
[342809011,1732143170854,-696.8,0.00058904,120]
[342809012,1732143170863,-517.71,0.00058904,120]
[342809013,1732143170873,-670.6,0.00058904,120]
[342809014,1732143170882,-1622.41,0.00058904,120]
[342809015,1732143170891,-732.47,0.00058904,120]